Cogmind - Beta 16 --- EXPLORER MODE // 2025.12.23 @ 11:26:27 // AFD2019/Pay2Buy Player: newo Result: Self-destructed Performance ------------- Evolutions (5) 2500 Regions Visited (7) 1400 Robots Destroyed (199) 995 Value Destroyed (7374) 7374 Prototype IDs (12) 240 Alien Tech Used (0) 0 Bonus (-63) -63 TOTAL SCORE: 12446 Bonus ------- Friendly Fire -63 Cogmind --------- Core Integrity 212/1000 Matter 98/300 Energy 100/100 System Corruption 5% Temperature Cool (0) Movement Rolling (95) Ox1 Location -5/Extension Parts ------- > --- POWER (2) -------- Improved Fusion Compressor > --- PROPULSION (3) --- Armored Medium Treads Wheel > --- UTILITY (8) ------ Advanced Heat Sink Improved Sensor Array Improved Signal Interpreter Hardened Medium Armor Plating Improved Hacking Suite Advanced Hacking Suite System Shield > --- WEAPON (5) ------- (None) > --- INVENTORY (10) --- Triangulator Precision Matter Filter Improved Propulsion Shielding Mobile Refinery Mk. CCLXVII Peak State ------------ > --- POWER ------------ Improved Fusion Compressor > --- PROPULSION ------- Armored Medium Treads Armored Medium Treads Armored Medium Treads > --- UTILITY ---------- Advanced Heat Sink Coolant Injector Hardened Medium Armor Plating Hardened Medium Armor Plating Layered Medium Armor Plating Improved Hacking Suite Advanced Hacking Suite System Shield > --- WEAPON ----------- Quantum Rifle Ion Burst Cannon Heavy Phase Cannon Flak Cannon > --- INVENTORY -------- Triangulator Improved Sensor Array Improved Signal Interpreter Precision Matter Filter Improved Propulsion Shielding Mobile Refinery Mk. CCLXVII [Rating: 84] Favorites ----------- Power Cold Fusion Reactor Engine Ion Engine Power Core Nuclear Core Reactor Cold Fusion Reactor Propulsion Armored Wheel Treads Armored Medium Treads Wheel Armored Wheel Utility Improved Signal Interpreter Device Improved Sensor Array Processor Improved Signal Interpreter Hackware Improved Hacking Suite Protection Hardened Medium Armor Plating Weapon Ion Burst Cannon Energy Gun Beam Rifle Energy Cannon Ion Burst Cannon Ballistic Cannon Flak Cannon Build | -11 -10 -9 -8 -7 -6 -5 -5 ------- Run | Yrd Mat Mat Mat Fac Fac Fac Ext Slots Evolved 11 | . 1 2 2 2 2 2 . Power 1 | . . . . . 1 . . Propulsion 1 | . 1 . . . . . . Utility 6 | . . 1 2 1 1 1 . Weapon 3 | . . 1 . 1 . 1 . Parts Attached 22 | . 1 5 1 6 3 . 6 Power 1 | . . . . 1 . . . Engine . | . . . . . . . . Core . | . . . . . . . . Reactor 1 | . . . . 1 . . . Propulsion 3 | . . 3 . . . . . Treads . | . . . . . . . . Leg . | . . . . . . . . Wheel 3 | . . 3 . . . . . Hover . | . . . . . . . . Flight . | . . . . . . . . Utility 12 | . 1 . 1 4 1 . 5 Device 6 | . 1 . . 2 1 . 2 Storage . | . . . . . . . . Processor 2 | . . . . 1 . . 1 Hackware 1 | . . . . 1 . . . Protection 3 | . . . 1 . . . 2 Artifact . | . . . . . . . . Weapon 6 | . . 2 . 1 2 . 1 Energy Gun 2 | . . 1 . . . . 1 Energy Cannon 1 | . . . . 1 . . . Ballistic Gun . | . . . . . . . . Ballistic Cannon 3 | . . 1 . . 2 . . Launcher . | . . . . . . . . Special Weapon . | . . . . . . . . Impact Weapon . | . . . . . . . . Slashing Weapon . | . . . . . . . . Piercing Weapon . | . . . . . . . . Special Melee Weapon . | . . . . . . . . Unidentified Prototypes . | . . . . . . . . Parts Lost 27 | . . 4 3 3 5 3 9 Power 3 | . . 1 . . . 1 1 Propulsion 5 | . . 1 1 1 1 . 1 Utility 8 | . . 1 . 2 1 2 2 Weapon 11 | . . 1 2 . 3 . 5 Highest Loss Streak 4 | . . 1 1 1 2 3 4 To Critical Strikes . | . . . . . . . . Average Backups 5 | . 1 2 4 7 8 9 7 Power . | . . . . . . . . Propulsion . | . . . . . . . . Utility 5 | . 1 2 4 7 7 9 7 Weapon . | . . . . . 1 . . Tool/Special . | . . . . . . . . Unused Backups 2 | . . . . . . . 2 Power . | . . . . . . . . Propulsion . | . . . . . . . . Utility 2 | . . . . . . . 2 Weapon . | . . . . . . . . Tool/Special . | . . . . . . . . Average Slot Usage (%) 88 | . 91 98 91 89 83 80 74 Engine 1 | . 12 2 . . . . . Core 3 | . . 7 8 . . . 5 Reactor 2 | . . . . 6 6 3 . Treads 4 | . . . . . 9 16 15 Wheel 14 | . 34 30 16 12 2 . . Device 12 | . 4 9 16 13 16 9 8 Processor 6 | . . 9 8 7 6 3 1 Hackware 7 | . . . . 13 14 16 16 Protection 8 | . 13 9 15 7 3 5 6 Energy Gun 7 | . 25 17 6 . . . 1 Energy Cannon 8 | . . . 4 19 15 11 9 Ballistic Cannon 8 | . . 11 12 8 7 11 7 Peak Build Rating 84 | 11 16 26 37 62 82 82 84 Average Rating 47 | 11 12 21 34 57 71 80 74 On Entrance 37 | . 11 10 26 37 62 82 75 Avg Prop Armor Cover (%) 2 | . . 2 . . . . . Naked Turns . | . . . . . . . . Heaviest Build 63 | 16 19 28 46 59 58 58 63 Greatest Support 81 | 32 44 48 36 40 81 81 81 Greatest Overweight (x) 4 | . . 2 1 4 2 . . Average Overweight (x) . | . . . . 1 . . . Largest Inventory Capacity 10 | 10 10 10 10 10 10 10 10 Average Capacity 10 | 10 10 10 10 10 10 10 10 Most Carried 9 | . 2 5 7 9 9 9 9 Average Carried 5 | . 1 2 4 7 8 9 7 Final Capacity 10 | 10 10 10 10 10 10 10 10 Final Carried 9 | . 2 4 7 8 9 9 4 Class Distribution -------------------- 45% | Hacker-Skirmisher 33% | Hacker-Tank 14% | Hacker-Mutant 5% | Scientist-Skirmisher Dominant Class ---------------- Hacker-Mutant | -10/Materials Hacker-Skirmisher | -9/Materials Hacker-Tank | -8/Materials Hacker-Skirmisher | -7/Factory Hacker-Skirmisher | -6/Factory Hacker-Tank | -5/Factory Hacker-Tank | -5/Extension Resources | -11 -10 -9 -8 -7 -6 -5 -5 ----------- Run | Yrd Mat Mat Mat Fac Fac Fac Ext Matter Collected 2796 | 75 142 385 679 514 437 . 564 Remotely . | . . . . . . . . Salvage Created 6721 | 75 487 1301 1400 1264 1107 70 1017 Parts . | . . . . . . . . Haulers Intercepted 2 | . . 1 1 . . . . Recyclers Shooed . | . . . . . . . . Parts Field Recycled . | . . . . . . . . Retrieved Matter . | . . . . . . . . Parts Self-Destructed . | . . . . . . . . Prevented . | . . . . . . . . Parts Restored . | . . . . . . . . Kills | -11 -10 -9 -8 -7 -6 -5 -5 ------- Run | Yrd Mat Mat Mat Fac Fac Fac Ext Combat Hostiles Destroyed 153 | . 12 34 37 33 25 1 11 Guns 49 | . 12 21 14 . . . 2 Cannons 100 | . . 12 22 33 23 1 9 AOE 2 | . . . . . 2 . . Classes Destroyed 14 | 2 4 4 1 1 1 . 1 Worker 6 | . . 1 2 1 2 . . Builder 4 | . 1 . 1 . . . 2 Tunneler 4 | 1 . . . 1 1 . 1 Hauler 2 | . . 1 1 . . . . Recycler 5 | 1 . . . . . . 4 Operator 6 | . . 1 2 2 . 1 . Watcher 19 | . 3 5 5 2 4 . . Swarmer 26 | . 4 7 4 7 4 . . Grunt 89 | . 8 17 25 19 13 . 7 Duelist 1 | . . . . . 1 . . Sentry 24 | . . 10 6 1 4 1 2 Hunter 7 | . . . 2 4 1 . . Programmer 4 | . . . . 2 2 . . Behemoth 2 | . . . . . . . 2 Best Kill Streak 11 | 2 3 10 11 5 6 1 7 Combat Bots Only 7 | . 3 7 5 5 6 1 4 Max Kills in Single Turn 3 | 1 1 3 2 2 2 1 3 Gunslinging . | . . . . . . . . Exploded 2 | . . . . . 2 . . Melee . | . . . . . . . . Uniques/NPCs Destroyed . | . . . . . . . . Combat | -11 -10 -9 -8 -7 -6 -5 -5 -------- Run | Yrd Mat Mat Mat Fac Fac Fac Ext Hostile Shots Fired 623 | . 44 79 108 84 189 . 119 Missed 205 | . 11 17 42 24 81 . 30 Hits 418 | . 33 62 66 60 108 . 89 Projectile 418 | . 33 62 66 60 108 . 89 Critical Strikes 13 | . . 1 1 1 3 . 7 Damage Taken 6174 | . 212 624 635 802 1465 490 1946 Core 1221 | . 39 153 66 60 115 135 653 Absorbed by Shields . | . . . . . . . . Redirected to Shielding 6 | . 6 . . . . . . Ignored by Resistances 2890 | . 146 332 384 473 734 3 818 Core Remaining (%) 85 | 100 84 61 88 91 86 . . Volleys Fired 350 | 3 36 68 91 55 45 14 38 Largest 4 | 2 2 3 3 4 4 4 4 Hottest 321 | 112 112 149 149 270 284 281 321 Shots Fired 1071 | 6 69 198 274 196 174 56 98 Gun 300 | 6 69 121 87 . . . 17 Cannon 771 | . . 77 187 196 174 56 81 Launcher . | . . . . . . . . Special . | . . . . . . . . Kinetic 385 | . . 77 142 45 68 28 25 Thermal 686 | 6 69 121 132 151 106 28 73 Explosive . | . . . . . . . . Electromagnetic . | . . . . . . . . Robot Hit Streak 35 | 5 13 27 24 19 20 12 35 Robot Miss Streak 10 | . 3 4 3 10 6 1 3 Penetration Max 1 | . . . 1 . . . . Secondary Targets 1 | . 1 . . . . . . Max Gunslinging Chain 1 | . 1 . . . . . . Shots Hit Robots 647 | 5 44 135 179 108 93 4 79 Core Hits 450 | 2 21 71 145 73 69 5 64 Critical Kills 3 | . . . 1 2 . . . Critical Parts Destroyed 7 | . . . 5 1 1 . . Critical Strikes 33 | 3 4 6 14 3 3 . . Burn 21 | 3 4 6 8 . . . . Destroy 10 | . . . 6 3 1 . . Blast 2 | . . . . . 2 . . Melee Attacks . | . . . . . . . . Impact . | . . . . . . . . Slashing . | . . . . . . . . Piercing . | . . . . . . . . Sneak Attacks . | . . . . . . . . Combat Hostiles . | . . . . . . . . Follow-up Attacks . | . . . . . . . . Damage Inflicted 17870 | 73 641 2330 3937 3735 3816 154 3184 Guns 3582 | 73 641 1372 1087 . . . 409 Cannons 14188 | . . 958 2850 3657 3794 154 2775 Explosions 78 | . . . . 78 . . . Melee . | . . . . . . . . Ramming 22 | . . . . . 22 . . Kinetic 5202 | . . 958 2205 252 1096 14 677 Thermal 12568 | 73 641 1372 1732 3405 2698 140 2507 Explosive 78 | . . . . 78 . . . Electromagnetic . | . . . . . . . . Impact . | . . . . . . . . Slashing . | . . . . . . . . Piercing . | . . . . . . . . Highest Corruption 5 | . 2 1 2 . 2 5 5 Average Corruption 2 | . 1 1 1 . 2 4 5 Corruption Purged . | . . . . . . . . Corruption Blocked . | . . . . . . . . Effects 40 | . 2 1 19 . 5 2 11 Message Errors 11 | . . 1 4 . 2 1 3 Matter Fused 7 | . 1 . 4 . 1 . 1 Heat Flow Errors 4 | . 1 . 3 . . . . Energy Discharges 4 | . . . 1 . . 1 2 Data Loss (minor) 5 | . . . 3 . 1 . 1 Data Loss (major) 2 | . . . 1 . . . 1 Misfires 2 | . . . 1 . 1 . . Alerts 2 | . . . 2 . . . . Weapon Failures 3 | . . . . . . . 3 Overload Shots . | . . . . . . . . Overflow Damage 209 | . . 3 34 65 90 . 17 Projectiles 169 | . . 3 34 25 90 . 17 Explosions 40 | . . . . 40 . . . Melee . | . . . . . . . . Knockbacks 50 | . . 5 28 3 11 . 3 Impact . | . . . . . . . . Kinetic 46 | . . 5 27 3 9 . 2 Secondary 4 | . . . 1 . 2 . 1 Self-Inflicted Damage 215 | . . . 31 181 . 3 . Shots 6 | . . . 1 4 . 1 . Rammed 3 | . 1 . . . 2 . . Targets Rammed 3 | . 1 . . . 2 . . Kicked . | . . . . . . . . Crushed . | . . . . . . . . Highest Temperature 924 | 163 360 623 190 427 . 144 924 Average Temperature 152 | 81 125 188 34 96 . 69 268 Received Heat Transfer 2947 | . 90 336 486 279 415 . 1341 Effects 67 | . 4 26 . . . . 37 Shutdowns 17 | . 1 6 . . . . 10 Energy Bleed 6 | . . 2 . . . . 4 Interference 21 | . 3 11 . . . . 7 Short Circuit 5 | . . 2 . . . . 3 Damage (minor) 5 | . . 2 . . . . 3 Damage (major) 8 | . . 1 . . . . 7 Damage (core) 5 | . . 2 . . . . 3 Siege Activations . | . . . . . . . . Martial Activations . | . . . . . . . . Shielding Activations . | . . . . . . . . Robots Disrupted . | . . . . . . . . Combat Hostiles . | . . . . . . . . Robots Corrupted . | . . . . . . . . Combat Hostiles . | . . . . . . . . Parts Fried . | . . . . . . . . Impact Corruptions . | . . . . . . . . Robots Melted 2 | . . 1 1 . . . . Combat Hostiles 2 | . . 1 1 . . . . Parts Melted 2 | . . 1 . 1 . . . Heat Transferred 20909 | 407 1924 3922 4255 4136 3262 162 2841 Parts Sabotaged . | . . . . . . . . Parts Stolen . | . . . . . . . . Parts Stripped . | . . . . . . . . Power Chain Reactions . | . . . . . . . . Alert | -11 -10 -9 -8 -7 -6 -5 -5 ------- Run | Yrd Mat Mat Mat Fac Fac Fac Ext Maximum Alert Level 1 | . . 1 . 1 . . . Low Security (%) 94 | 100 100 74 100 91 100 100 100 Level 1 5 | . . 25 . 8 . . . Level 2 . | . . . . . . . . Level 3 . | . . . . . . . . Level 4 . | . . . . . . . . Level 5 . | . . . . . . . . High Security . | . . . . . . . . Max Security . | . . . . . . . . Peak Influence 307 | 10 109 251 193 307 141 19 69 Initial 105 | . . . 50 48 105 19 . Average 68 | 2 30 123 81 124 32 3 19 Influence Increases 4596 | 10 398 970 1093 994 771 75 285 Destroy 0b10 Robot/C 3060 | . 240 680 740 660 500 20 220 Destroy 0b10 Robot/NC 230 | 10 20 40 55 30 35 5 35 Destroy Leader 782 | . 66 212 182 144 148 10 20 Successful Hack 127 | . 23 13 17 51 15 8 . Disable Machine 112 | . 4 4 28 52 20 4 . Destroy Structure 225 | . . 6 71 57 53 28 10 Lose Combat Pursuer 60 | . 45 15 . . . . . Influence Decreases 4596 | 10 398 804 1111 850 1008 130 285 Entered New Map 439 | . . . 116 100 187 36 . Time Decay 3664 | 10 398 764 695 720 781 82 214 Lost Part 223 | . . 40 30 30 40 12 71 Purge Threat 270 | . . . 270 . . . . Squads Dispatched 39 | . 4 4 7 9 11 1 3 Investigation 27 | . 4 3 7 6 5 1 1 Extermination 5 | . . . . 2 3 . . Reinforcement 6 | . . 1 . . 3 . 2 Assault . | . . . . . . . . Garrison 1 | . . . . 1 . . . Intercept . | . . . . . . . . Searches Triggered . | . . . . . . . . Construction Impeded 4 | . . . . . 2 . 2 Haulers Reinforced 1 | . . . . . 1 . . Active Scanning Responses . | . . . . . . . . Cargo Convoy Interrupts . | . . . . . . . . Stealth | -11 -10 -9 -8 -7 -6 -5 -5 --------- Run | Yrd Mat Mat Mat Fac Fac Fac Ext Distress Signals 13 | . 2 6 3 1 . . 1 Communications Jammed . | . . . . . . . . Distress Signals . | . . . . . . . . Times Spotted 190 | . 18 39 44 37 36 2 14 Peak Tracking Total 6 | . 5 5 5 5 6 1 4 Tactical Retreats 2 | . 1 1 . . . . . Traps | -11 -10 -9 -8 -7 -6 -5 -5 ------- Run | Yrd Mat Mat Mat Fac Fac Fac Ext Traps Triggered 12 | . 1 2 . 4 4 . 1 Indirectly . | . . . . . . . . Trap Hack Attempts . | . . . . . . . . Triggered . | . . . . . . . . Disarmed . | . . . . . . . . Reprogrammed . | . . . . . . . . Reused . | . . . . . . . . Traps Extracted . | . . . . . . . . Installed . | . . . . . . . . Triggered . | . . . . . . . . Machines | -11 -10 -9 -8 -7 -6 -5 -5 ---------- Run | Yrd Mat Mat Mat Fac Fac Fac Ext Machines Disabled 28 | . 1 1 7 13 5 1 . Max in Single Turn 3 | . 1 1 2 3 2 1 . Machines Repaired . | . . . . . . . . Machines Dismantled . | . . . . . . . . Machines Sabotaged . | . . . . . . . . Overloaded Fab Kills . | . . . . . . . . Hacking | -11 -10 -9 -8 -7 -6 -5 -5 --------- Run | Yrd Mat Mat Mat Fac Fac Fac Ext Machines Accessed 40 | . 8 10 8 5 6 3 . Terminals 36 | . 8 8 7 5 5 3 . Fabricators . | . . . . . . . . Repair Stations . | . . . . . . . . Recycling Units . | . . . . . . . . Scanalyzers 4 | . . 2 1 . 1 . . Garrison Access . | . . . . . . . . Total Hacks 160 | . 30 41 31 22 24 12 . Successful 114 | . 19 35 20 15 16 9 . Failed 46 | . 11 6 11 7 8 3 . Catastrophic 4 | . . 1 1 . 2 . . Database Lockouts . | . . . . . . . . Manual . | . . . . . . . . Terminals 151 | . 30 36 29 22 22 12 . Fabricators . | . . . . . . . . Repair Stations . | . . . . . . . . Recycling Units . | . . . . . . . . Scanalyzers 9 | . . 5 2 . 2 . . Garrison Access . | . . . . . . . . Terminal Hacks 105 | . 19 30 18 15 14 9 . Record 45 | . 2 8 9 11 13 2 . Part Schematic 1 | . . . . 1 . . . Robot Analysis 2 | . . 2 . . . . . Prototype ID Bank 3 | . 1 1 1 . . . . Open DSF 3 | . . . . 1 1 1 . Branch Access Points 3 | . . 1 1 . . 1 . Emergency Access Points 2 | . 1 1 . . . . . Terminal Index 1 | . . 1 . . . . . Recycling Unit Index 1 | . 1 . . . . . . Alert Level 14 | . 3 11 . . . . . Unreport Threat 3 | . . . 3 . . . . Locate Traps 4 | . 2 1 . 1 . . . Dispatch Records 5 | . 1 2 1 . . 1 . Maintenance Status 3 | . . 1 2 . . . . Surveillance Status 1 | . 1 . . . . . . Transport Status 1 | . 1 . . . . . . Investigation Status 2 | . 1 . . 1 . . . Assault Status 1 | . . . . . . 1 . Recall Assault 1 | . . . . . . 1 . Hauler Manifests 4 | . 1 1 1 . . 1 . Registered Components 2 | . 1 . . . . 1 . Zone Layout 3 | . 3 . . . . . . Fabricator Hacks . | . . . . . . . . Repair Station Hacks . | . . . . . . . . Recycling Unit Hacks . | . . . . . . . . Scanalyzer 9 | . . 5 2 . 2 . . Retrieve Study 9 | . . 5 2 . 2 . . Garrison Access Hacks . | . . . . . . . . Unauthorized Hacks . | . . . . . . . . Terminals . | . . . . . . . . Fabricators . | . . . . . . . . Repair Stations . | . . . . . . . . Recycling Units . | . . . . . . . . Scanalyzers . | . . . . . . . . Garrison Access . | . . . . . . . . Data Cores Recovered 4 | . . . 2 1 . 1 . Used . | . . . . . . . . Hacking Detections 36 | . 7 9 7 4 6 3 . Full Trace Events 29 | . 6 7 7 4 4 1 . Feedback Events 4 | . 1 1 2 . . . . Corruption 4 | . 1 1 2 . . . . Feedback Blocked . | . . . . . . . . Robot Schematics Acquired . | . . . . . . . . Robots Built . | . . . . . . . . Authchips . | . . . . . . . . Time . | . . . . . . . . Total Robot Build Rating . | . . . . . . . . Part Schematics Acquired 1 | . . . . 1 . . . Parts Built . | . . . . . . . . Authchips . | . . . . . . . . Time . | . . . . . . . . Total Part Build Rating . | . . . . . . . . Part Studies Acquired 7 | . . 4 2 . 1 . . Parts Repaired . | . . . . . . . . Time . | . . . . . . . . Parts Recycled . | . . . . . . . . Recycled Matter . | . . . . . . . . Retrieved Matter . | . . . . . . . . Retrieved Components . | . . . . . . . . Parts Scanalyzed . | . . . . . . . . Part Schematics Acquired . | . . . . . . . . Parts Damaged . | . . . . . . . . Bothacking | -11 -10 -9 -8 -7 -6 -5 -5 ------------ Run | Yrd Mat Mat Mat Fac Fac Fac Ext Used RIF Installer . | . . . . . . . . Robots Hacked . | . . . . . . . . Non-combat . | . . . . . . . . Combat . | . . . . . . . . Robot Hacks Applied . | . . . . . . . . Relay Couplers Released . | . . . . . . . . Fabnet Peak Effective % . | . . . . . . . . Robots Rewired . | . . . . . . . . Allies Hacked . | . . . . . . . . Hacks Repelled . | . . . . . . . . Allies | -11 -10 -9 -8 -7 -6 -5 -5 -------- Run | Yrd Mat Mat Mat Fac Fac Fac Ext Total Allies . | . . . . . . . . Largest Group . | . . . . . . . . Highest-Rated Group . | . . . . . . . . Highest-Rated Ally . | . . . . . . . . Total Orders . | . . . . . . . . Ally Attacks . | . . . . . . . . Total Damage . | . . . . . . . . Kills . | . . . . . . . . Allies Corrupted . | . . . . . . . . Allies Melted . | . . . . . . . . Intel | -11 -10 -9 -8 -7 -6 -5 -5 ------- Run | Yrd Mat Mat Mat Fac Fac Fac Ext Active Infowar (turns) 4278 | . . 1087 1052 967 1081 . 91 Sensors 4278 | . . 1087 1052 967 1081 . 91 Robot Analysis Total 2 | . . 2 . . . . . Derelict Logs Recovered . | . . . . . . . . Drone Launches . | . . . . . . . . Drone Recoveries . | . . . . . . . . Exploration | -11 -10 -9 -8 -7 -6 -5 -5 ------------- Run | Yrd Mat Mat Mat Fac Fac Fac Ext Turns Passed 6229 | 28 676 1121 1052 972 1560 357 463 Spaces Moved 3844 | 19 554 824 722 601 820 170 134 Core . | . . . . . . . . Treads 906 | . . . . . 602 170 134 Legs . | . . . . . . . . Wheels 2938 | 19 554 824 722 601 218 . . Hover . | . . . . . . . . Flight . | . . . . . . . . Fastest Speed 80 | 100 96 80 80 105 105 170 170 Average Speed 115 | 100 96 88 94 114 154 170 170 Slowest Speed 210 | 100 100 110 95 140 210 170 170 Overloaded Moves . | . . . . . . . . Propulsion Burnouts . | . . . . . . . . Robots Hopped . | . . . . . . . . Potential Cave-ins 16 | . . . 4 . . 12 . Cave-ins Triggered 3 | . . . . . 1 2 . Exploration Rate (%) 41 | 3 97 91 58 26 31 5 21 Regions Visited 7 Branch Regions 1 Pre-discovered Areas . | . . . . . . . . Known Exits Taken 7 | 1 1 1 1 1 1 1 . Unknown Exits Taken . | . . . . . . . . Scrap Searched . | . . . . . . . . Spaces Dug 37 | . . . 15 6 3 13 . Terrain Destroyed 236 | . . . 84 62 62 23 5 Melee . | . . . . . . . . Projectile 115 | . . . 33 22 32 23 5 AOE 121 | . . . 51 40 30 . . Terrain Rammed . | . . . . . . . . Walls Destroyed . | . . . . . . . . Machines Disabled . | . . . . . . . . Actions | -11 -10 -9 -8 -7 -6 -5 -5 --------- Run | Yrd Mat Mat Mat Fac Fac Fac Ext Total 4746 | 21 625 1062 889 704 969 196 280 Wait 510 | . 33 163 73 41 87 13 100 Move 3837 | 18 553 823 721 600 819 169 134 Hop . | . . . . . . . . Pick Up 5 | . . . 2 . 2 . 1 Fast Attach . | . . . . . . . . Attach 13 | . . 1 1 2 3 . 6 Detach 1 | . 1 . . . . . . Swap 10 | . 1 4 . 4 1 . . Drop 9 | . . 3 1 2 2 . 1 Fire 350 | 3 36 68 91 55 45 14 38 Melee . | . . . . . . . . Ram 1 | . 1 . . . . . . Kick . | . . . . . . . . Crush 2 | . . . . . 2 . . Escape Stasis 8 | . . . . . 8 . . Rewire . | . . . . . . . . Trap . | . . . . . . . . Miscellaneous . | . . . . . . . . Route ------- -11/Scrapyard -10/Materials (discovered 4 exits: *Mat x3 / *Min) -9/Materials (discovered 5 exits: *Mat x3 / *Min x2) -8/Materials (discovered 2 exits: *Fac x2) -7/Factory (discovered 3 exits: *Fac / *Sto / *Low) -6/Factory (discovered 3 exits: *Fac x2 / *Low) -5/Factory (discovered 4 exits: Upp x2 / *Ext x2) -5/Extension History --------- Turn | Location | Event 5 | -11/Scrapyard | Identified exit to Materials 5 | -11/Scrapyard | Discovered exit to Materials (range 14) 29 | -11/Scrapyard | Entered Materials 29 | -10/Materials | Evolved 1 slot: Propulsion x1 71 | -10/Materials | Identified exit to Materials 71 | -10/Materials | Discovered exit to Materials (range 16) 114 | -10/Materials | Found Mobile Refinery Mk. CCLXVII 210 | -10/Materials | Identified exit to Mines 210 | -10/Materials | Discovered exit to Mines (range 14) 302 | -10/Materials | Discovered exit to Materials (range 15) 306 | -10/Materials | Build established: Hacker-Mutant 510 | -10/Materials | Discovered exit to Materials (range 9) 705 | -10/Materials | Entered another Materials area 705 | -9/Materials | Evolved 2 slots: Utility x1, Weapon x1 829 | -9/Materials | Identified exit to Mines 1075 | -9/Materials | Build established: Hacker-Skirmisher 1143 | -9/Materials | Identified exit to Materials 1143 | -9/Materials | Discovered exit to Materials (range 16) 1304 | -9/Materials | Destroyed 7 combat bots 1319 | -9/Materials | Discovered exit to Materials (range 11) 1427 | -9/Materials | Build established: Scientist-Skirmisher 1669 | -9/Materials | Discovered exit to Materials (range 10) 1795 | -9/Materials | Build established: Hacker-Skirmisher 1826 | -9/Materials | Entered another Materials area 1826 | -8/Materials | Evolved 2 slots: Utility x2 2167 | -8/Materials | Identified exit to Factory 2167 | -8/Materials | Discovered exit to Factory (range 10) 2215 | -8/Materials | Build established: Hacker-Tank 2841 | -8/Materials | Discovered exit to Factory (range 16) 2878 | -8/Materials | Entered Factory 2878 | -7/Factory | Evolved 2 slots: Utility x1, Weapon x1 3061 | -7/Factory | Garrison activated, responded to threat 3138 | -7/Factory | Identified exit to Lower Caves 3138 | -7/Factory | Discovered exit to Lower Caves (range 7) 3170 | -7/Factory | Build established: Hacker-Skirmisher 3296 | -7/Factory | Identified exit to Storage 3296 | -7/Factory | Discovered exit to Storage (range 7) 3764 | -7/Factory | Identified exit to Factory 3764 | -7/Factory | Discovered exit to Factory (range 15) 3850 | -7/Factory | Entered another Factory area 3850 | -6/Factory | Evolved 2 slots: Power x1, Utility x1 3978 | -6/Factory | Allied Derelicts emerged from ambush trap array 4557 | -6/Factory | Identified exit to Factory 4557 | -6/Factory | Discovered exit to Factory (range 16) 4962 | -6/Factory | Lost 3 allies 5023 | -6/Factory | Crushed by falling debris 5059 | -6/Factory | Identified exit to Lower Caves 5059 | -6/Factory | Discovered exit to Lower Caves (range 16) 5280 | -6/Factory | Build established: Hacker-Tank 5390 | -6/Factory | Discovered exit to Factory (range 6) 5410 | -6/Factory | Entered another Factory area 5410 | -5/Factory | Evolved 2 slots: Utility x1, Weapon x1 5540 | -5/Factory | Identified exit to Upper Caves 5540 | -5/Factory | Identified exit to Extension 5685 | -5/Factory | Crushed by falling debris 5694 | -5/Factory | Crushed by falling debris 5725 | -5/Factory | Lost 3 parts (1p2u) 5767 | -5/Factory | Entered Extension 5967 | -5/Extension | Disrupted transfer network 6058 | -5/Extension | Spotted B-75 Beast 6073 | -5/Extension | Destroyed B-75 Beast 6136 | -5/Extension | Spotted B-75 Beast 6181 | -5/Extension | Lost 4 parts (2u2w) 6188 | -5/Extension | Core integrity fell below 50% 6196 | -5/Extension | Destroyed B-75 Beast 6227 | -5/Extension | Lost 3 parts (1p1n1w) 6230 | -5/Extension | Self-destructed Last Messages --------------- Overheating: Adv. Heat Sink damaged (-4). Overheating: Core damaged (-200). Hvy. Phase Cannon destroyed. B-75 Beast destroyed. Overheating: Adv. Heat Sink damaged (-2). Overheating: System interference. Quantum Rifle temporarily disabled. Imp. Sensor Array temporarily disabled. Power failure, Imp. Fusion Compressor shutdown. Overheating: Energy bleed (-7). Power failure, Imp. Fusion Compressor shutdown. Overheating: Imp. Signal Interpreter damaged (-8). Overheating: Imp. Sensor Array damaged (-1). Overheating: Hrd. Medium Armor Plating damaged (-3). Overheating: Imp. Fusion Compressor damaged (-17). [Purchased: Wheel] Dropped Broken Arm. Medium Treads+. T-07 Excavator destroyed. R-10 Processor collects Broken Arm. Medium Treads+. Quantum Rifle destroyed. Map ----- +----------------------------------------------------+ | ?????????????????????????????????????????????????? | | ?????????????????????????????????????????????????? | | ?????????????????????????????????????????????????? | | ?????????????????????????????????????????????????? | | ?????????????????????????????????????????????????? | | ?????????????????????????????????????????????????? | | ?????????????????????????????????????????????????? | | ?????????????????????????????????????????????????? | | ?????????????????????????????????????????????????? | | ?????????????????????????????????????????????????? | | ?????????????????????????????????????????????????? | | ?????????????????????????????????????????????????? | | ?????????????????????????????????????????????????? | | ?????????????????????????????????????????????????? | | ???????????????????????????????#??##??#??????????? | | ?????????????????????????????? ### ## #??????????? | | ?????????????????????????????? "" "?????????? | | ?????????????????????????????" " % ?????????? | | ????????????????????????????? ?????????? | | ????????????????#??????????? ????????? | | ############################ % ????????? | | % u ???????? | | % ???????? | | % % % %t ???????? | | R u % Rk % u u ???????? | | k % Rt R@%%% % g A ???????? | | ############################ t g ????????? | | ???????????????????????????? ????????? | | ????????????????????????????? ?????????? | | ????????????????????????????? ?????????? | | ?????????????????????????????? ?????????? | | ??????????????????????????????###T#"""#??????????? | | ??????????????????????????????????#??????????????? | | ?????????????????????????????????????????????????? | | | | | | | | | | | | | | | | | | | | | | | | | | | | | | | | | +----------------------------------------------------+ Best States ------------- Heat Dissipation 78 Coolant Potential 65 Energy Generation 48 Energy Capacity 250 Matter Stores 300 Matter Capacity 300 Sight Range 16 Robot Scan Range 15 Terrain Scan Density 10 Base Temperature (-) 150 Armor Coverage 675 Resistance: KI 35 Resistance: TH 35 Resistance: EX 35 Resistance: EM 35 Resistance: I 35 Resistance: S 35 Resistance: P 35 Propulsion Shielding 66 Evasion (%) 44 Recoil Reduction 3 Offensive Hacking 46 Defensive Hacking 10 Item Schematics ----------------- Antimatter Cannon | -7/Factory | Hacked Robot Schematics ------------------ None Fabricated ------------ Nothing Repaired ---------- Nothing Studied --------- Beam Rifle | -9/Materials | Hacked Com. Wheel | -9/Materials | Hacked Arm. Wheel | -9/Materials | Hacked Lgt. Cannon | -9/Materials | Hacked Flak Cannon | -8/Materials | Hacked Nuclear Core | -8/Materials | Hacked Arm. Medium Treads | -6/Factory | Hacked Alien Tech Used ----------------- None Achievements -------------- Construction Begets Destruction I Spy Unlikely Earthworm Challenges ------------ None Cogshop Purchases (48) ------------------------ Imp. Propulsion Shielding (Loot Box) Com. Wheel (659) Com. Wheel (659) Ion Engine (599) Lgt. Armor Plating (599) Beam Rifle (699) Beam Rifle (699) Mobile Refinery Mk. CCLXVII (Loot Box) Arm. Wheel (856) Imp. Sensor Array (904) Imp. Signal Interpreter (777) Lgt. Cannon (593) Ovr. Scrapsphere (1003) Nuclear Core (702) Sub. Monowheel (935) Hrd. Medium Armor Plating (722) Flak Cannon (633) Arm. Wheel (997) Arm. Wheel (997) Hrd. Medium Armor Plating (405) Hrd. Medium Armor Plating (405) Imp. Cooling System (1067) Slug Cannon (869) Cld. Particle Cannon (724) Prc. Matter Filter (Loot Box) Flexi-carbon Leg (Loot Box) Coolant Injector (Loot Box) Cold Fusion Reactor (819) Ion Burst Cannon (1999) Imp. Hacking Suite (1627) System Shield (1301) Ion Burst Cannon (2350) Arm. Huge Wheel (1390) Imp. Cryofiber Web (1120) Adv. Heat Sink (1163) Linear Accelerator (Loot Box) Triangulator (1203) Arm. Medium Treads (1171) Arm. Medium Treads (1171) Adv. Hacking Suite (1765) Lyr. Medium Armor Plating (938) Hvy. Phase Cannon (820) Arm. Medium Treads (1644) Imp. Fusion Compressor (944) Lgt. Angular Momentum Engine (854) Quantum Rifle (Loot Box) Mak. Power Source (863) Wheel (473) Game ------ Seed SpectralNuclearMachine Manual? 0 Play Time 01:14:47 Cumulative 5.0 hours Start 2025.12.22 @ 23:14:38 End 2025.12.23 @ 11:26:27 Sessions 2 Manual Loads 0 Difficulty Explorer Special Mode AFD2019/Pay2Buy Game No. 9 Rogue 4 Adventurer 0 Explorer 5 Win Type - Total 0 Types 0/0/0/0/0/0/0/0/0/0 Lore% 5 Gallery% 15 Achievement% 16 Wizard Run 0 Options --------- Layout 0 ASCII 0 Keyboard 0 Movement Mouse Keybinds 0 Fullscreen 1 Font 18/SmallcapsGlow Map View 76x50 Zoom Use 0% Tactical HUD 0 Map Filters NONE Filters NONE Steam 1 RUN: 53e6a496-ea81-4d30-bf9c-0ec0ed4901af